bitfinex-derivatives/quotes_ETHF0:USTF0_20250224
["timestamp","ask_amount","ask_price","bid_price","bid_amount"]
[1740403650317,3.94308817,2690.6,2690.0,1.73237839]
[1740403650518,3.94308817,2690.6,2690.1,0.55381121]
[1740403650719,3.94308817,2690.6,2690.2,0.55381121]
[1740403651022,3.94308817,2690.6,2690.0,1.73237839]
[1740403651219,3.94308817,2690.6,2690.1,0.55381222]
[1740403651517,3.94308817,2690.6,2690.2,0.55381222]
[1740403651717,3.94308817,2690.6,2690.3,0.55381222]
[1740403651917,3.94308817,2690.6,2690.0,1.73237839]
[1740403652221,3.94308817,2690.6,2690.1,0.5543765]
[1740403652409,3.94308817,2690.6,2690.2,0.5543765]
[1740403652615,3.94308817,2690.6,2690.3,0.5543765]
[1740403652816,3.94308817,2690.6,2690.0,1.73237839]
[1740403653117,3.94308817,2690.6,2690.1,0.55460882]
[1740403653318,3.94308817,2690.6,2690.2,0.55460882]
[1740403653515,3.94308817,2690.6,2690.0,1.73237839]
[1740403653722,3.94308817,2690.6,2690.1,0.5545862]
[1740403654019,3.94308817,2690.6,2690.2,0.5545862]
[1740403654221,3.94308817,2690.6,2690.0,0.58967839]
[1740403654423,3.94308817,2690.6,2690.1,0.55457681]
[1740403654610,3.2078,2690.3,2690.2,0.55457681]
[1740403655119,3.2078,2690.3,2690.0,0.00557839]
[1740403655322,0.549,2690.2,2690.0,0.00557839]
[1740403655517,0.5351,2690.1,2690.0,0.00557839]
[1740403655724,0.73528817,2690.3,2690.0,0.56006702]
[1740403655923,0.73528817,2690.3,2690.1,0.55448863]
[1740403656221,3.78828817,2690.4,2690.0,0.00557839]
[1740403656421,3.78828817,2690.4,2690.1,0.55444507]
[1740403656616,3.78828817,2690.4,2690.0,0.00557839]
[1740403656823,3.78828817,2690.4,2690.0,0.00207531]
[1740403657219,3.78828817,2690.4,2690.0,1.69587531]
[1740403657521,3.78828817,2690.4,2690.1,0.55438223]
[1740403657723,3.78828817,2690.4,2690.0,1.69587531]
[1740403657914,3.78828817,2690.4,2690.1,0.55436622]
[1740403658121,3.78828817,2690.4,2690.0,1.69587531]
[1740403658319,3.78828817,2690.4,2690.1,0.55436776]
[1740403658527,3.78828817,2690.4,2690.0,1.69587531]
[1740403658726,3.78828817,2690.4,2690.1,0.55438637]
[1740403659024,3.78828817,2690.4,2690.0,1.69587531]
[1740403659025,3.78828817,2690.4,2690.2,0.55438637]
[1740403659217,3.78828817,2690.4,2690.0,1.69587531]
[1740403659420,3.78828817,2690.4,2690.1,0.55435972]
[1740403659615,3.78828817,2690.4,2690.2,0.55435972]
[1740403659819,3.78828817,2690.4,2690.0,1.69587531]
[1740403660120,3.78828817,2690.4,2690.1,0.55436113]
[1740403660322,3.78828817,2690.4,2690.2,0.55436113]
[1740403660522,3.78828817,2690.4,2690.0,1.69587531]
[1740403660720,3.78828817,2690.4,2690.1,0.5543778]
[1740403660921,3.78828817,2690.4,2690.2,0.5543778]
[1740403661124,3.78828817,2690.4,2690.0,1.69587531]
[1740403661324,3.78828817,2690.4,2690.1,0.55438113]
[1740403661520,3.78828817,2690.4,2690.2,0.55438113]
[1740403661722,3.78828817,2690.4,2690.0,1.69587531]
[1740403662026,3.78828817,2690.4,2690.1,0.55428879]
[1740403662225,3.78828817,2690.4,2690.2,0.55428879]
[1740403662424,3.78828817,2690.4,2690.3,0.55428879]
[1740403662822,3.78828817,2690.4,2690.0,1.69587531]
[1740403663023,3.78828817,2690.4,2690.1,0.5543894]
[1740403663225,3.78828817,2690.4,2690.2,0.5543894]
[1740403663422,3.78828817,2690.4,2690.0,1.69587531]
[1740403663629,3.78828817,2690.4,2690.1,0.55443562]
[1740403663832,0.73528817,2690.4,2690.2,0.55442876]
[1740403664030,0.73879125,2690.5,2690.3,0.55442876]
[1740403664327,0.73879125,2690.5,2690.4,0.55438191]
[1740403664525,0.00350308,2690.5,2690.4,0.55438191]
[1740403665321,6.26430308,2690.5,2690.0,1.69587531]
[1740403665521,6.26430308,2690.5,2690.1,0.55451797]
[1740403665726,6.26430308,2690.5,2690.0,1.69587531]
[1740403665926,0.73528817,2690.4,2690.1,0.55448068]
[1740403666134,0.73528817,2690.4,2690.2,0.55448068]
[1740403666321,0.73528817,2690.4,2690.0,1.69587531]
[1740403666626,0.73528817,2690.4,2690.1,0.55445425]
[1740403666831,6.26430308,2690.5,2690.2,0.55445425]
[1740403667134,6.26430308,2690.5,2690.3,0.55445425]
[1740403667430,6.26430308,2690.5,2690.0,1.69587531]
[1740403667431,6.26430308,2690.5,2690.0,1.13997531]
[1740403667630,3.2078,2690.2,2690.1,0.55454969]
[1740403667824,3.2078,2690.2,2690.0,0.00207531]
[1740403668131,4.1358,2690.1,2690.0,0.00207531]
[1740403668334,4.1358,2690.1,2690.0,0.55667497]
[1740403668831,4.87242113,2690.1,2690.0,0.00207531]
[1740403669426,4.87242113,2690.1,2690.0,0.55668838]
[1740403669728,0.73662113,2690.1,2690.0,0.55668838]
[1740403669929,3.053,2690.2,2690.0,0.55668838]
[1740403670122,3.053,2690.2,2690.0,0.00207531]
[1740403670826,3.053,2690.2,2690.1,0.55459545]
[1740403671026,3.053,2690.2,2690.1,0.55459261]
[1740403671436,0.73662113,2690.3,2690.1,0.55459261]
[1740403671638,0.73662113,2690.3,2690.2,0.55459261]
[1740403671842,0.00350308,2690.5,2690.2,1.13489261]
[1740403672035,0.00350308,2690.5,2690.3,0.55459261]
[1740403672236,0.00350308,2690.5,2690.4,0.55459261]
[1740403672838,0.00350308,2690.5,2690.1,0.594]
[1740403673032,0.00350308,2690.5,2690.2,0.554696]
[1740403673232,0.00350308,2690.5,2690.3,0.554696]
[1740403673433,0.00350308,2690.5,2690.1,0.594]
[1740403673634,0.00350308,2690.5,2690.2,0.55473938]
[1740403673831,0.00350308,2690.5,2690.1,0.594]
[1740403674039,0.00350308,2690.5,2690.2,0.55265681]
[1740403674227,0.00350308,2690.5,2690.3,0.55265681]
[1740403674432,0.00350308,2690.5,2690.1,0.594]
[1740403674741,0.00350308,2690.5,2690.2,0.55268219]
[1740403675038,0.00350308,2690.5,2690.3,0.55268219]
[1740403675233,0.00350308,2690.5,2690.1,0.594]
[1740403675436,0.00350308,2690.5,2690.2,0.55271228]
[1740403675639,0.00350308,2690.5,2690.3,0.55271228]
[1740403675841,0.00350308,2690.5,2690.1,0.594]
[1740403676036,0.00350308,2690.5,2690.2,0.55271235]
[1740403676339,0.00350308,2690.5,2690.3,0.55271235]
[1740403676540,0.00350308,2690.5,2690.0,0.00207531]
[1740403676739,0.58330308,2690.5,2690.1,0.55272929]
[1740403676940,0.58330308,2690.5,2690.0,0.00207531]
[1740403676941,0.58330308,2690.5,2690.2,0.55272929]
[1740403677150,1.31992421,2690.5,2690.0,0.00207531]
[1740403677351,1.31992421,2690.5,2690.1,0.55273966]
[1740403677648,1.31992421,2690.5,2690.0,0.00207531]
[1740403677949,1.31992421,2690.5,2690.1,0.55274368]
[1740403678151,1.31992421,2690.5,2690.2,0.55274368]
[1740403678343,1.31992421,2690.5,2690.0,0.00207531]
[1740403678542,1.31992421,2690.5,2690.1,0.55274744]
[1740403678850,1.31992421,2690.5,2690.0,0.00207531]
[1740403679050,3.2078,2690.3,2690.0,0.00207531]
[1740403679244,3.053,2690.2,2690.0,0.00207531]
[1740403679449,4.33332113,2690.2,2690.0,0.00207531]
[1740403679749,0.73662113,2690.1,2690.0,0.00207531]
[1740403681651,1.31912113,2690.1,2690.0,0.00207531]
[1740403682645,0.73662113,2690.1,2690.0,0.00207531]
[1740403682951,0.73662113,2690.1,2690.0,0.55470353]
[1740403683347,3.053,2690.3,2690.0,0.55472329]
[1740403683649,1.1539,2690.4,2690.0,0.00207531]
[1740403683850,3.053,2690.3,2690.0,0.00207531]
[1740403684046,3.78962113,2690.3,2690.0,0.00207531]
[1740403684851,3.78962113,2690.3,2690.1,0.55262894]
[1740403685052,3.78962113,2690.3,2690.0,0.00207531]
[1740403685253,0.73662113,2690.3,2690.1,0.55262652]
[1740403685452,0.73662113,2690.3,2690.2,1.0888]
[1740403685649,0.73662113,2690.3,2690.2,1.64145042]
[1740403685850,0.74012421,2690.5,2690.2,1.64145042]
[1740403686049,0.74012421,2690.5,2690.2,1.0888]
[1740403686756,0.74012421,2690.5,2690.3,0.55169321]
[1740403686949,0.74012421,2690.5,2690.2,1.0888]
[1740403687156,0.74012421,2690.5,2690.3,0.55169211]
[1740403687351,0.74012421,2690.5,2690.2,1.0888]
[1740403687656,0.74012421,2690.5,2690.3,0.55169214]
[1740403687851,0.74012421,2690.5,2690.4,0.5516827]
[1740403688052,0.00350308,2690.5,2690.4,0.5516827]
[1740403690154,0.00350308,2690.5,2690.4,0.84907978]
[1740403690351,0.71985407,2690.8,2690.4,3.90207978]
[1740403690551,3.77,2692.1,2690.7,3.2078]
[1740403690855,0.5703,2692.0,2691.3,3.2078]
[1740403691051,0.5703,2692.0,2691.4,1.65065879]
[1740403691256,0.74295,2691.7,2691.6,0.74296]
[1740403691452,0.74299,2691.6,2691.5,0.74297]
[1740403691656,0.74294,2691.7,2691.6,0.74294]
[1740403691852,2.42745,2692.0,2691.5,0.74296]
[1740403692054,0.5703,2692.0,2691.4,1.10477839]
[1740403692248,1.85693,2692.3,2691.4,1.10477839]
[1740403692450,5.06473,2692.3,2691.4,4.31257839]
[1740403692655,1.85699,2692.2,2691.4,4.31257839]
[1740403692856,1.85715,2692.0,2691.4,4.31257839]
[1740403693058,0.74298,2691.6,2691.5,0.54906035]
[1740403693358,0.74299,2691.5,2691.4,4.31257839]
[1740403694061,0.74299,2691.5,2691.4,0.00557839]
[1740403695353,3.95079,2691.5,2691.4,0.00557839]
[1740403695558,0.74312,2691.0,2690.9,1.1368]
[1740403696155,5.06548,2691.2,2690.8,3.2078]
[1740403696362,0.74321,2690.7,2690.6,0.5743]
[1740403696856,0.00557839,2690.9,2690.5,4.3546]
[1740403697063,0.74323,2690.6,2690.5,4.3546]
[1740403697864,0.00557839,2690.9,2690.5,5.09784]
[1740403698159,0.7432,2690.8,2690.6,0.74322]
[1740403698347,0.00557839,2690.9,2690.5,4.3546]
[1740403698549,0.00557839,2690.9,2690.8,3.95098]
[1740403698961,0.74872839,2690.9,2690.8,3.95098]
[1740403699356,0.74872839,2690.9,2690.8,3.2078]
[1740403699757,0.00557839,2690.9,2690.8,3.95098]
[1740403701360,0.74872839,2690.9,2690.8,3.75620091]
[1740403701557,0.00557839,2690.9,2690.8,4.49940094]
[1740403701862,0.00557839,2690.9,2690.8,4.49940223]
[1740403702251,0.00557839,2690.9,2690.8,3.95098]
[1740403702856,0.00557839,2690.9,2690.8,4.49936688]
[1740403703663,0.00557839,2690.9,2690.8,10.49936688]
[1740403703966,3.7503,2691.8,2690.8,9.75618688]
[1740403704266,3.7503,2691.8,2691.2,3.2078]
[1740403704569,3.2078,2691.4,2690.8,3.2078]
[1740403704870,0.5764,2691.3,2690.8,3.2078]
[1740403705165,3.052,2691.5,2690.8,3.2078]
[1740403707467,0.71634538,2691.6,2690.8,3.2078]
[1740403707667,1.29054538,2691.6,2690.8,3.2078]
[1740403707866,0.5742,2691.6,2690.9,0.5481769]
[1740403708063,0.5742,2691.6,2690.8,3.2078]
[1740403708264,0.5742,2691.6,2691.1,3.2078]
[1740403708465,0.5742,2691.6,2691.2,1.1297]
[1740403708765,3.7503,2691.8,2691.2,1.6678]
[1740403709660,0.5742,2691.9,2691.4,3.2078]
[1740403710160,3.2078,2692.1,2691.4,3.2078]
[1740403710560,0.71644442,2692.3,2692.0,3.2078]
[1740403710867,3.92424442,2692.6,2692.1,0.5799]
[1740403711065,0.5366,2692.5,2692.1,0.5799]
[1740403711264,0.74279,2692.2,2692.1,0.5799]
[1740403711766,0.74285,2692.0,2691.9,0.00557839]
[1740403712567,1.30755,2692.0,2691.9,0.00557839]
[1740403713460,4.51535,2692.0,2691.9,0.00557839]
[1740403713760,3.7725,2692.0,2691.3,3.2078]
[1740403713966,0.74301,2691.4,2691.3,3.2078]
[1740403714361,3.2078,2691.7,2691.3,3.2078]
[1740403714569,0.74301,2691.4,2691.3,3.2078]
[1740403715563,0.74854839,2691.6,2691.4,0.74299]
[1740403715767,0.74854839,2691.6,2691.4,0.74301]
[1740403716070,0.00557839,2691.6,2691.4,0.74301]
[1740403716267,0.74854839,2691.6,2691.5,0.74299]
[1740403716463,0.72298866,2691.6,2691.5,0.74299]
[1740403716769,0.00557839,2691.6,2691.5,0.74299]
[1740403717466,0.00557839,2691.6,2691.5,1.29187859]
[1740403717662,0.00557839,2691.6,2691.5,1.29187957]
[1740403717864,0.00557839,2691.6,2691.5,0.74299]
[1740403718068,0.00557839,2691.6,2691.5,1.29187105]
[1740403719678,0.74853839,2691.6,2691.5,1.29187105]
[1740403719870,0.74853839,2691.6,2691.5,0.54918582]
[1740403720067,0.00557839,2691.6,2691.5,1.29217582]
[1740403721267,0.00557839,2691.6,2691.5,0.54918582]
[1740403722370,0.00557839,2691.6,2691.5,0.54924577]
[1740403723463,0.00557839,2691.6,2691.4,0.5468]
[1740403725763,0.00557839,2691.6,2691.3,3.2078]
[1740403725968,3.2078,2691.5,2691.1,0.00557839]
[1740403726167,1.6627,2691.4,2691.1,0.00557839]
[1740403726363,3.051,2691.3,2691.1,0.00557839]
[1740403726968,1.1079,2691.4,2691.1,0.00557839]
[1740403727163,0.00557839,2691.6,2691.2,3.75700284]
[1740403727369,0.00557839,2691.6,2691.3,1.69729737]
[1740403727570,0.00557839,2691.6,2691.4,0.54929737]
[1740403727869,0.00557839,2691.6,2691.3,1.148]
[1740403728167,0.00557839,2691.6,2691.4,0.54923511]
[1740403728374,0.00557839,2691.6,2691.3,1.148]
[1740403728669,0.00557839,2691.6,2691.4,1.08464867]
[1740403728871,0.00557839,2691.6,2691.5,0.54934867]
[1740403729971,0.00557839,2691.6,2691.5,0.54945799]
[1740403730166,0.00557839,2691.6,2691.4,0.5353]
[1740403730373,0.00557839,2691.6,2691.5,0.54950648]
[1740403731072,3.06757839,2691.6,2691.5,0.54950648]
[1740403731272,3.06757839,2691.6,2691.1,0.00557839]
[1740403731472,1.1236,2691.5,2691.2,0.54967182]
[1740403731673,0.585,2691.4,2691.1,0.00557839]
[1740403731971,0.585,2691.4,2691.2,0.54963585]
[1740403732175,0.585,2691.4,2691.1,0.00557839]
[1740403732370,0.585,2691.4,2691.2,0.54966059]
[1740403732571,0.585,2691.4,2691.1,0.00557839]
[1740403732772,0.585,2691.4,2691.2,0.54964642]
[1740403732973,0.585,2691.4,2691.1,0.00557839]
[1740403733772,3.7928,2691.4,2691.1,0.00557839]
[1740403734373,0.71835116,2691.3,2691.1,0.00557839]
[1740403735979,3.056,2691.2,2691.1,0.00557839]
[1740403739080,3.056,2691.2,2691.1,0.00207623]
[1740403740477,3.76935116,2691.3,2691.1,0.55155633]
[1740403740670,3.76935116,2691.3,2691.1,0.00207623]
[1740403741079,0.71835116,2691.3,2691.1,3.20987623]
[1740403741377,0.71835116,2691.3,2691.2,1.66801112]
[1740403741778,1.089,2691.5,2691.2,1.66801112]
[1740403741981,0.00557839,2691.6,2691.3,0.54941112]
[1740403742175,0.00557839,2691.6,2691.2,1.1186]
[1740403742374,0.00557839,2691.6,2691.3,0.54963124]
[1740403742578,0.74299,2691.5,2691.4,0.54963124]
[1740403742779,0.00557839,2691.6,2691.1,0.00207623]
[1740403742975,0.74304,2691.3,2691.2,0.54986914]
[1740403743170,3.071,2691.3,2691.1,0.00207623]
[1740403743381,1.33677,2691.2,2691.1,0.00207623]
[1740403743587,1.33677,2691.2,2691.1,0.551975]
[1740403743885,1.33677,2691.2,2691.1,0.55197218]
[1740403745781,1.33677,2691.2,2691.1,0.55177385]
[1740403746376,1.33677,2691.2,2691.1,0.00207623]
[1740403746583,4.40677,2691.2,2691.1,0.00207623]
[1740403748183,3.6637,2691.2,2691.1,0.00207623]
[1740403752289,12.6507,2691.2,2691.1,6.23e-06]
[1740403752585,12.6507,2691.2,2690.0,4.3367]
[1740403752789,3.2078,2690.4,2690.1,0.54999317]
[1740403752984,1.1353,2690.3,2690.0,3.7882]
[1740403753188,1.1353,2690.3,2690.1,0.55011901]
[1740403753381,1.1353,2690.3,2689.8,0.5867]
[1740403753687,1.1353,2690.3,2689.9,0.54963003]
[1740403753883,1.1353,2690.3,2690.0,0.54963003]
[1740403754190,1.1353,2690.3,2690.1,0.54965629]
[1740403754388,1.1353,2690.3,2689.8,0.59227839]
[1740403754590,1.1353,2690.3,2689.9,0.54939597]
[1740403754790,1.1353,2690.3,2690.0,0.54939597]
[1740403754986,1.1353,2690.3,2689.8,0.59227839]
[1740403755187,1.1353,2690.3,2689.9,0.54942426]
[1740403755382,0.5406,2690.2,2689.8,0.00557839]
[1740403755585,3.2078,2690.1,2689.8,0.00557839]
[1740403755780,3.062,2690.0,2689.8,0.00557839]
[1740403755988,6.049,2690.0,2689.8,0.00557839]
[1740403756195,0.74343,2689.9,2689.8,0.00557839]
[1740403758893,0.74343,2689.9,2689.8,8.39e-06]
[1740403759389,6.049,2690.0,2689.4,0.5857]
[1740403759594,0.74354,2689.5,2689.4,0.5857]
[1740403760893,3.056,2689.6,2689.4,0.5857]
[1740403761297,0.74354,2689.5,2689.4,0.5857]
[1740403761691,0.74357,2689.4,2689.3,3.7984]
[1740403762199,3.056,2689.6,2689.3,4.3337]
[1740403762588,2.987,2689.7,2689.3,4.3337]
[1740403762793,0.00557839,2690.2,2689.6,3.2078]
[1740403762995,0.00557839,2690.2,2690.1,3.2078]
[1740403763308,3.061,2690.9,2690.5,0.74325]
[1740403763596,0.74316,2690.9,2690.7,0.74319]
[1740403763897,0.74304,2691.3,2691.1,0.74308]
[1740403764086,0.74304,2691.3,2691.1,3.95089]
[1740403764595,0.74306,2691.3,2691.1,3.95089]
[1740403764996,0.74304,2691.4,2691.2,0.74305]
[1740403765195,0.00557839,2691.5,2691.1,3.2078]
[1740403765395,0.00557839,2691.5,2690.9,0.00557839]
[1740403765396,3.2078,2691.3,2690.9,0.00557839]
[1740403765604,0.74312,2691.0,2690.9,0.00557839]
[1740403766596,3.80712,2691.0,2690.9,0.00557839]
[1740403767700,3.063,2691.4,2691.1,0.74308]
[1740403767891,0.74303,2691.4,2691.1,0.74308]
[1740403768292,0.00557839,2691.5,2691.4,0.74301]
[1740403768487,3.06857839,2691.5,2690.9,5.62925839]
[1740403768695,0.74305,2691.3,2690.9,3.77137839]
[1740403768899,0.74311,2691.1,2690.9,0.56357839]
[1740403769094,3.06857839,2691.5,2690.9,0.56357839]
[1740403769299,0.74306,2691.3,2691.0,0.74311]
[1740403769596,0.74309,2691.2,2690.9,3.77137839]
[1740403769793,3.06857839,2691.5,2690.9,3.77137839]
[1740403770091,0.74302,2691.4,2691.2,0.74306]
[1740403770696,0.00557839,2691.5,2691.2,3.2078]
[1740403770893,0.74857839,2691.5,2691.3,0.74303]
[1740403771093,0.00557839,2691.5,2691.4,0.74301]
[1740403771600,0.74856839,2691.5,2691.4,0.74301]
[1740403771800,0.74301,2691.4,2691.3,1.33413]
[1740403771992,3.21337839,2691.5,2691.1,0.5584]
[1740403772194,0.74307,2691.2,2691.1,0.5584]
[1740403774196,3.21337839,2691.5,2691.1,0.5584]
[1740403774400,0.74307,2691.2,2691.1,0.5584]
[1740403775207,0.00557839,2691.5,2691.1,1.30148]
[1740403775399,0.00557839,2691.5,2691.2,3.2078]
[1740403775799,0.00557839,2691.5,2691.4,0.74301]
[1740403778406,0.74856839,2691.5,2691.4,0.74301]
[1740403778605,0.00557839,2691.5,2691.4,0.74301]
[1740403780103,0.00557839,2691.5,2691.2,3.2078]
[1740403782203,0.00557839,2691.5,2691.3,0.5385]
[1740403783505,0.00557839,2691.5,2691.2,3.2078]
[1740403783705,3.2078,2691.3,2690.9,3.21337839]
[1740403783912,3.077,2691.2,2690.9,0.00557839]
[1740403785211,4.93469,2691.2,2690.9,0.00557839]
[1740403785411,0.74312,2691.0,2690.9,0.00557839]
[1740403785600,3.2078,2691.3,2690.9,0.00557839]
[1740403785804,0.74857839,2691.5,2691.3,0.74304]
[1740403786007,0.00557839,2691.5,2691.3,0.74303]
[1740403786307,0.00557839,2691.5,2691.1,3.2078]
[1740403786511,0.74312,2691.0,2690.9,0.00557839]
[1740403787198,0.5649,2691.3,2690.9,0.00557839]
[1740403787406,1.30796,2691.3,2690.9,0.58187839]
[1740403787606,0.5649,2691.3,2691.1,0.74308]
[1740403787806,0.74307,2691.2,2691.1,0.74308]
[1740403788003,0.74306,2691.3,2690.9,1.13647839]
[1740403788203,3.097,2691.4,2691.1,3.2078]
[1740403788410,3.84002,2691.4,2691.3,0.74304]
[1740403788713,0.74301,2691.4,2691.3,0.74304]
[1740403789005,0.00557839,2691.5,2691.1,3.2078]
[1740403789200,0.74305,2691.3,2691.2,0.74304]
[1740403789404,0.74305,2691.3,2691.1,3.2078]
[1740403789608,0.74305,2691.3,2691.2,0.74307]
[1740403789809,0.74856839,2691.5,2691.4,0.74301]
[1740403790009,0.00557839,2691.5,2691.1,3.2078]
[1740403790199,0.74307,2691.3,2691.2,0.74305]
[1740403791706,0.74307,2691.3,2691.2,1.29078337]
[1740403792210,0.00557839,2691.5,2691.2,0.54788733]
[1740403792406,3.092,2691.4,2690.9,0.58187839]
[1740403792717,1.1645,2691.3,2691.0,0.54912858]
[1740403792918,1.1645,2691.3,2690.9,0.00557839]
[1740403793118,0.5541,2691.2,2691.0,0.5492035]
[1740403793410,0.5541,2691.2,2690.9,0.00557839]
[1740403793610,0.5541,2691.2,2691.0,0.54940045]
[1740403793810,0.5541,2691.2,2691.1,0.54940045]
[1740403794011,0.5541,2691.2,2690.9,0.00557839]
[1740403794310,0.5541,2691.2,2691.0,0.54944754]
[1740403794512,0.5541,2691.2,2690.9,0.00557839]
[1740403797207,0.5541,2691.2,2691.0,0.54934232]
[1740403797518,0.5541,2691.2,2690.9,0.00557839]
[1740403797710,0.5541,2691.2,2691.0,0.54936082]
[1740403797909,0.5541,2691.2,2690.9,0.00557839]
[1740403799012,3.2078,2691.0,2690.9,0.00557839]
[1740403799219,6.2898,2691.0,2690.9,0.00557839]
[1740403799514,6.2898,2691.0,2690.9,8.39e-06]
[1740403799905,7.0086414,2691.0,2690.9,8.39e-06]
[1740403801418,13.0086414,2691.0,2690.9,8.39e-06]
[1740403801618,13.0086414,2691.0,2689.9,3.2078]
[1740403801815,3.2078,2690.5,2690.0,0.54929594]
[1740403802021,4.7616,2690.4,2689.9,3.2078]
[1740403802319,0.7434,2690.0,2689.9,3.2078]
[1740403802520,0.7434,2690.0,2689.9,3.75666517]
[1740403802715,0.7434,2690.0,2689.8,0.5476]
[1740403802716,3.2078,2690.2,2689.7,0.00557839]
[1740403803020,0.74346,2689.8,2689.7,0.00557839]
[1740403803615,0.00557839,2690.2,2689.7,0.00557839]
[1740403804015,3.08857839,2690.2,2690.1,0.74337]
[1740403804224,0.00557839,2690.2,2690.1,0.74337]
[1740403804722,0.00557839,2690.2,2689.7,1.14237839]
[1740403804914,0.00557839,2690.2,2690.1,0.74337]
[1740403805114,0.00557839,2690.2,2690.0,3.2078]
[1740403805519,0.00557839,2690.2,2689.9,0.74342]
[1740403805716,0.74337,2690.1,2689.7,4.35017839]
[1740403806021,0.74894839,2690.2,2690.0,0.74339]
[1740403806211,0.74894839,2690.2,2689.8,0.5481642]
[1740403806212,0.74894839,2690.2,2689.7,6.20886839]
[1740403806416,0.00557839,2690.2,2689.9,0.74341]
[1740403806614,0.00557839,2690.2,2689.7,4.35017839]
[1740403806926,0.74893839,2690.2,2690.0,0.74338]
[1740403807118,0.00557839,2690.2,2690.0,3.2078]
[1740403807319,0.00557839,2690.2,2690.1,0.74337]
[1740403807518,0.74891839,2690.2,2690.1,1.31207]
[1740403807821,0.00557839,2690.2,2690.1,1.31207]
[1740403808023,0.00557839,2690.2,2690.1,0.5687]
[1740403808226,0.74891839,2690.2,2690.1,1.31207]
[1740403808728,0.74891839,2690.2,2690.1,0.5687]
[1740403810221,0.00557839,2690.2,2690.1,0.5687]
[1740403810425,3.081,2691.1,2690.1,1.11700074]
[1740403810628,3.081,2691.1,2690.5,3.2078]
[1740403810829,3.081,2691.1,2690.6,0.5366]
[1740403811028,6.2888,2691.1,2690.6,0.5366]
[1740403811535,6.29437839,2691.1,2690.6,0.5366]
[1740403811826,6.29437839,2691.1,2690.7,0.5446]
[1740403812022,3.21337839,2691.1,2690.7,1.0817]
[1740403812223,0.74868839,2691.1,2691.0,0.74312]
[1740403812426,0.74868839,2691.1,2690.9,0.74314]
[1740403812427,0.74314,2691.0,2690.9,0.74314]
[1740403812627,0.00557839,2691.1,2690.8,3.2078]
[1740403812929,0.74314,2691.0,2690.9,0.74314]
[1740403813324,0.74867839,2691.1,2691.0,0.74312]
[1740403813933,0.00557839,2691.1,2691.0,0.74312]
[1740403814134,0.74313,2691.0,2690.9,0.74314]
[1740403814428,0.74869839,2691.1,2690.9,0.74314]
[1740403814730,0.74869839,2691.1,2691.0,0.74312]
[1740403815021,0.74313,2691.0,2690.8,3.95095]
[1740403815423,0.00557839,2691.1,2690.8,3.2078]
[1740403815625,0.74313,2691.0,2690.9,0.74314]
[1740403815833,0.74867839,2691.1,2691.0,0.74312]
[1740403816029,0.74313,2691.0,2690.9,0.74314]
[1740403816232,0.00557839,2691.1,2690.8,3.2078]
[1740403816528,0.00557839,2691.1,2690.9,0.54853586]
[1740403816729,0.00557839,2691.1,2690.8,3.2078]
[1740403816935,0.00557839,2691.1,2690.9,0.54852538]
[1740403817123,0.00557839,2691.1,2691.0,0.54852538]
[1740403817628,0.00557839,2691.1,2690.8,3.2078]
[1740403817831,0.00557839,2691.1,2690.9,0.54851638]
[1740403818017,0.00557839,2691.1,2690.8,3.2078]
[1740403818430,0.00557839,2691.1,2690.7,1.0817]
[1740403818634,0.00557839,2691.1,2690.6,0.5366]
[1740403818925,0.54717839,2691.1,2690.5,3.2078]
[1740403819126,0.5705,2691.0,2690.5,3.2078]
[1740403819329,4.92889,2690.9,2690.5,3.2078]
[1740403819527,0.74323,2690.6,2690.5,3.2078]
[1740403820032,0.74323,2690.6,2679.0,284.25782155]
[1740403820033,3.2078,2690.6,2689.7,3.21337839]
[1740403820329,1.85841,2690.2,2689.7,0.00557839]
[1740403820521,0.74346,2689.8,2689.7,0.00557839]
[1740403822629,3.2078,2690.0,2689.7,0.00557839]
[1740403822829,3.083,2690.4,2689.8,3.2078]
[1740403823030,0.5349,2690.7,2689.9,0.54927608]
[1740403823341,0.74334,2690.3,2690.1,3.2078]
[1740403823531,0.74334,2690.2,2690.1,3.2078]
[1740403823731,0.74331,2690.4,2690.0,3.7613]
[1740403823928,0.74326,2690.5,2690.3,0.74329]
[1740403824130,3.088,2690.6,2690.0,3.7613]
[1740403824434,0.74333,2690.3,2690.1,0.74336]
[1740403824837,0.74335,2690.2,2690.0,1.29689]
[1740403825035,4.94614,2690.6,2690.0,0.5535]
[1740403825335,0.7433,2690.4,2690.2,0.74333]
[1740403825536,3.088,2690.6,2690.2,0.74334]
[1740403825839,0.74326,2690.5,2690.2,0.74334]
[1740403826234,0.7433,2690.4,2690.2,0.74334]
[1740403826430,3.086,2690.6,2690.4,0.74326]
[1740403826640,3.087,2690.8,2690.3,3.7794]
[1740403826836,0.74321,2690.7,2690.5,0.74325]
[1740403827036,3.087,2690.8,2690.5,0.74325]
[1740403827335,3.087,2690.8,2690.3,0.5716]
[1740403827535,3.2078,2690.7,2690.0,3.7613]
[1740403827839,0.74328,2690.5,2690.1,0.54926382]
[1740403828040,0.5607,2690.6,2690.3,0.74331]
[1740403828343,0.74329,2690.4,2690.3,0.74331]
[1740403828533,0.74329,2690.4,2690.3,0.54924146]
[1740403828838,0.5607,2690.6,2690.2,0.74333]
[1740403829241,0.74331,2690.4,2690.3,0.54929959]
[1740403829938,0.5607,2690.6,2690.1,0.74336]
[1740403830142,0.5607,2690.6,2690.2,0.54935639]
[1740403830342,0.74322,2690.7,2690.5,0.74326]
[1740403830538,3.087,2690.8,2690.6,0.74323]
[1740403830738,0.74325,2690.6,2690.4,1.29097]
[1740403830938,3.83019,2690.8,2690.4,0.5477]
[1740403831150,3.83019,2690.8,2690.7,0.74321]
[1740403831644,3.087,2690.8,2690.4,0.5477]
[1740403831845,0.5429,2691.0,2690.9,0.74315]
[1740403832045,3.82567839,2691.1,2690.6,5.06589]
[1740403832245,3.08257839,2691.1,2690.7,0.5675]
[1740403832538,0.00557839,2691.1,2690.8,0.54907864]
[1740403832739,0.74314,2691.0,2690.9,0.74314]
[1740403832942,0.00557839,2691.1,2690.7,0.5675]
[1740403833246,0.74874839,2691.1,2691.0,0.74312]
[1740403833446,0.74321,2691.0,2690.9,0.74321]
[1740403833939,0.00557839,2691.1,2691.0,0.7432]
[1740403834145,0.74874839,2691.1,2691.0,0.7432]
[1740403834344,0.00557839,2691.1,2691.0,1.29222917]